bitfinex-derivatives/quotes_BTCF0:USTF0_20250614
["timestamp","ask_amount","ask_price","bid_price","bid_amount"]
[1749889197296,0.65123058,105000.0,104990.0,2.75983533]
[1749889198900,0.65123058,105000.0,104990.0,2.90678939]
[1749889199103,0.65123058,105000.0,104990.0,2.97058939]
[1749889199297,0.65123058,105000.0,104990.0,2.84058939]
[1749889199602,0.65123058,105000.0,104990.0,3.17058939]
[1749889200699,0.65123058,105000.0,104990.0,3.18540708]
[1749889201705,0.65123058,105000.0,104990.0,3.17058939]
[1749889201903,0.65123058,105000.0,104990.0,3.03845302]
[1749889202103,0.65123058,105000.0,104990.0,3.02363533]
[1749889202304,0.65123058,105000.0,104990.0,3.03845302]
[1749889202507,0.65123058,105000.0,104990.0,3.02363533]
[1749889202707,0.65123058,105000.0,104990.0,2.74005302]
[1749889203508,0.65123058,105000.0,104990.0,2.41005859]
[1749889204509,0.65123058,105000.0,104990.0,2.39523533]
[1749889204807,0.65123058,105000.0,104990.0,2.41005859]
[1749889206410,0.65123058,105000.0,104990.0,2.39523533]
[1749889206902,0.65123058,105000.0,104990.0,2.41005859]
[1749889208003,0.62053058,105000.0,104990.0,2.86700681]
[1749889208312,0.55903058,105000.0,104990.0,2.83982252]
[1749889208607,0.55903058,105000.0,104990.0,3.13822252]
[1749889208802,0.11414255,105000.0,104990.0,3.49902248]
[1749889209002,0.11414255,105000.0,104990.0,3.52842086]
[1749889209208,0.11414255,105000.0,104990.0,3.52842085]
[1749889209410,0.11414255,105000.0,104990.0,3.5284208]
[1749889209605,0.11414255,105000.0,104990.0,3.51360396]
[1749889209806,0.11414255,105000.0,104990.0,3.54323764]
[1749889210007,0.11414255,105000.0,104990.0,3.5284208]
[1749889210206,0.11414255,105000.0,104990.0,3.54323762]
[1749889210401,0.11414255,105000.0,104990.0,3.54323764]
[1749889210614,0.11414255,105000.0,104990.0,3.5284208]
[1749889210809,0.11414255,105000.0,104990.0,3.54323764]
[1749889211111,0.11414255,105000.0,104990.0,3.18243764]
[1749889211303,0.11414255,105000.0,104990.0,3.54323764]
[1749889211919,0.11414255,105000.0,104990.0,3.5432376]
[1749889212213,0.11414255,105000.0,104990.0,3.5284208]
[1749889212610,0.11414255,105000.0,104990.0,3.4245818]
[1749889212807,0.11414255,105000.0,104990.0,3.42458178]
[1749889213205,0.11414255,105000.0,104990.0,3.51379439]
[1749889213407,0.11414255,105000.0,104990.0,3.49897757]
[1749889214112,0.11414255,105000.0,104990.0,3.15299447]
[1749889214312,0.11414255,105000.0,104990.0,3.15299446]
[1749889214701,0.11414255,105000.0,104990.0,2.83977757]
[1749889214907,0.11414255,105000.0,104990.0,3.21539446]
[1749889215107,0.11414255,105000.0,104990.0,3.20057757]
[1749889215306,0.11414255,105000.0,104990.0,3.21536524]
[1749889215709,0.11414255,105000.0,104990.0,3.21534724]
[1749889215909,0.11414255,105000.0,104990.0,2.85454728]
[1749889216213,0.11414255,105000.0,104990.0,3.21534724]
[1749889216414,0.11414255,105000.0,104990.0,3.20057757]
[1749889217208,0.11414255,105000.0,104990.0,3.21534724]
[1749889217707,0.11414255,105000.0,104990.0,3.20057757]
[1749889218220,0.11414255,105000.0,104990.0,3.21534724]
[1749889218410,0.11414255,105000.0,104990.0,3.20057757]
[1749889218607,0.11414255,105000.0,104990.0,3.21534724]
[1749889219718,0.11414255,105000.0,104990.0,3.20057757]
[1749889219921,0.01414255,105000.0,104990.0,3.20057757]
[1749889220218,0.01414255,105000.0,104990.0,2.25314323]
[1749889220521,0.01414255,105000.0,104990.0,3.51482323]
[1749889221221,0.01414255,105000.0,104990.0,3.51484312]
[1749889221521,0.01414255,105000.0,104990.0,3.5148431]
[1749889221915,0.01414255,105000.0,104990.0,3.51484301]
[1749889223219,0.01414255,105000.0,104990.0,3.51485103]
[1749889223621,0.3608,105020.0,104990.0,3.76822731]
[1749889223915,0.1991,105020.0,105010.0,0.48596164]
[1749889224115,0.1,105020.0,105010.0,2.90770895]
[1749889224322,0.1,105020.0,105010.0,3.10918916]
[1749889224721,0.107,105020.0,105010.0,3.10918916]
[1749889224921,0.107,105020.0,105010.0,3.0943909]
[1749889225223,0.107,105020.0,105010.0,3.10918916]
[1749889225517,0.114,105020.0,105010.0,2.7753909]
[1749889225720,0.114,105020.0,105010.0,3.26715949]
[1749889226023,0.4608,105040.0,105030.0,0.1903348]
[1749889226216,0.5545,105040.0,105030.0,2.37368636]
[1749889226518,0.5408196,105040.0,105030.0,2.37368632]
[1749889226709,0.6408196,105040.0,105030.0,2.3736863]
[1749889227316,0.6408196,105040.0,105030.0,2.37368629]
[1749889228015,0.17044813,105040.0,105030.0,2.35887262]
[1749889228215,0.17244813,105040.0,105030.0,2.48135988]
[1749889228416,0.27244813,105040.0,105030.0,2.48135988]
[1749889228618,0.1957,105040.0,105030.0,2.48135988]
[1749889229223,0.1957,105040.0,105030.0,2.25857383]
[1749889229824,0.1957,105040.0,105030.0,2.22757383]
[1749889230226,0.20508552,105040.0,105030.0,2.22757383]
[1749889230619,0.20508552,105040.0,105030.0,2.23657383]
[1749889231519,0.20308552,105040.0,105030.0,2.23957383]
[1749889232026,0.56388552,105040.0,105030.0,2.23957383]
[1749889233927,0.5545,105040.0,105030.0,2.23957383]
[1749889234929,0.56407366,105040.0,105030.0,2.23957383]
[1749889235127,0.4608,105040.0,105030.0,2.55957383]
[1749889235323,0.4608,105040.0,105030.0,2.62027383]
[1749889235519,0.1,105040.0,105030.0,2.66107383]
[1749889235732,0.1,105040.0,105030.0,3.03046109]
[1749889236232,0.16784501,105050.0,105040.0,0.1903166]
[1749889236532,0.26784501,105050.0,105040.0,0.36495519]
[1749889236824,0.26784501,105050.0,105040.0,0.72495519]
[1749889237530,0.26784501,105050.0,105040.0,0.36495519]
[1749889237733,0.63838297,105050.0,105040.0,0.36495519]
[1749889238132,0.64038297,105050.0,105040.0,0.36495519]
[1749889238431,0.26984501,105050.0,105040.0,0.36495519]
[1749889239625,0.63064501,105050.0,105040.0,0.36495519]
[1749889240622,0.64023732,105050.0,105040.0,0.36475412]
[1749889242331,0.83053572,105050.0,105040.0,0.36475412]
[1749889242534,0.64023732,105050.0,105040.0,0.36475412]
[1749889244536,0.83053572,105050.0,105040.0,0.36475412]
[1749889244736,0.83053572,105050.0,105040.0,1.32867412]
[1749889246535,0.83053572,105050.0,105040.0,0.36475412]
[1749889246737,0.83053572,105050.0,105040.0,1.19808479]
[1749889246938,0.83053572,105050.0,105040.0,0.41704479]
[1749889247135,0.83053572,105050.0,105040.0,1.19780479]
[1749889247740,1.05624505,105050.0,105040.0,0.23424479]
[1749889247936,1.05624505,105050.0,105040.0,1.1539566]
[1749889249241,0.92573572,105050.0,105040.0,1.1539566]
[1749889250438,0.92573572,105050.0,105040.0,1.19794144]
[1749889250839,0.92573572,105050.0,105040.0,1.1539566]
[1749889251039,0.83053572,105050.0,105040.0,1.1539566]
[1749889251240,0.83053572,105050.0,105040.0,1.19795648]
[1749889254742,0.83053572,105050.0,105040.0,0.23431648]
[1749889255043,0.83053572,105050.0,105040.0,1.19771648]
[1749889255533,0.83053572,105050.0,105040.0,0.23431648]
[1749889255738,0.83053572,105050.0,105040.0,1.19791648]
[1749889257444,0.83053572,105050.0,105040.0,1.19811648]
[1749889258440,0.83053572,105050.0,105040.0,0.41747648]
[1749889258644,0.83053572,105050.0,105040.0,1.19783648]
[1749889258943,1.05624505,105050.0,105040.0,1.19783648]
[1749889259444,1.05624505,105050.0,105040.0,1.00747988]
[1749889259653,1.17456851,105050.0,105040.0,0.96348]
[1749889259850,0.1903165,105040.0,105030.0,1.0606197]
[1749889260050,0.6487165,105040.0,105030.0,2.11616381]
[1749889260748,0.87443383,105040.0,105030.0,2.02113561]
[1749889261145,0.87443383,105040.0,105030.0,2.02513561]
[1749889262949,0.87443383,105040.0,105030.0,2.03113561]
[1749889263456,0.87443383,105040.0,105030.0,2.02113561]
[1749889263457,0.87643383,105040.0,105030.0,2.02113561]
[1749889264459,0.87643383,105040.0,105030.0,1.9770546]
[1749889265357,0.7459245,105040.0,105030.0,1.9770546]
[1749889269053,0.6507165,105040.0,105030.0,1.9770546]
[1749889276870,0.6507165,105040.0,105030.0,2.0086546]
[1749889277169,0.6507165,105040.0,105030.0,2.05274281]
[1749889277370,0.79759744,105040.0,105030.0,2.23202375]
[1749889278065,0.79759744,105040.0,105030.0,1.19153554]
[1749889278265,0.79759744,105040.0,105030.0,2.15425554]
[1749889279269,0.78128816,105040.0,105030.0,2.0073746]
[1749889281269,0.78128816,105040.0,105030.0,2.05147259]
[1749889282772,0.6507165,105040.0,105030.0,2.05147259]
[1749889283778,0.6507165,105040.0,105030.0,2.08457259]
[1749889284273,0.6507165,105040.0,105030.0,2.11717259]
[1749889287372,0.5531165,105040.0,105030.0,2.11717259]
[1749889289273,0.5531165,105040.0,105030.0,2.13205287]
[1749889289475,0.5531165,105040.0,105030.0,2.11717259]
[1749889289975,0.5531165,105040.0,105030.0,2.13205286]
[1749889290177,0.5531165,105040.0,105030.0,2.11717259]
[1749889290378,0.5531165,105040.0,105030.0,1.21387318]
[1749889290674,0.5838165,105040.0,105030.0,2.17555314]
[1749889290875,0.6161165,105040.0,105030.0,2.16067303]
[1749889291076,0.6161165,105040.0,105030.0,2.19043325]
[1749889291271,0.6161165,105040.0,105030.0,2.17555314]
[1749889291776,0.6161165,105040.0,105030.0,2.19043325]
[1749889292775,0.6161165,105040.0,105030.0,2.17555314]
[1749889292974,0.6161165,105040.0,105030.0,2.19043325]
[1749889293175,0.6161165,105040.0,105030.0,2.17555314]
[1749889293376,0.6161165,105040.0,105030.0,2.19043325]
[1749889294579,0.6161165,105040.0,105030.0,2.17555314]
[1749889294780,0.6161165,105040.0,105030.0,2.19043325]
[1749889295575,0.5531165,105040.0,105030.0,2.17555314]
[1749889295976,0.5531165,105040.0,105030.0,2.19043325]
[1749889296379,0.5531165,105040.0,105030.0,2.17555314]
[1749889296677,0.5531165,105040.0,105030.0,2.19043325]
[1749889296872,0.5531165,105040.0,105030.0,2.17555314]
[1749889297078,0.5531165,105040.0,105030.0,2.19043325]
[1749889297272,0.5531165,105040.0,105030.0,2.17555314]
[1749889297579,0.5531165,105040.0,105030.0,2.19043325]
[1749889297975,0.5531165,105040.0,105030.0,2.1310127]
[1749889298274,0.5531165,105040.0,105030.0,2.14589281]
[1749889298873,0.5531165,105040.0,105030.0,2.1310127]
[1749889299074,0.5531165,105040.0,105030.0,2.14513281]
[1749889299274,0.77778816,105040.0,105030.0,2.11253281]
[1749889300180,0.89611162,105040.0,105030.0,2.11253281]
[1749889300381,0.89611162,105040.0,105030.0,2.0976527]
[1749889300582,0.89611162,105040.0,105030.0,2.11253281]
[1749889301283,0.91242992,105040.0,105030.0,2.25942277]
[1749889301982,0.91242992,105040.0,105030.0,2.0976527]
[1749889302281,0.91242992,105040.0,105030.0,2.25942277]
[1749889302482,0.91242992,105040.0,105030.0,2.24454266]
[1749889302885,0.91242992,105040.0,105030.0,2.25942277]
[1749889303786,0.91242992,105040.0,105030.0,1.43670277]
[1749889304278,0.91242992,105040.0,105030.0,1.42182266]
[1749889304785,0.91242992,105040.0,105030.0,1.43670277]
[1749889305185,0.91242992,105040.0,105030.0,1.42182266]
[1749889305787,0.91242992,105040.0,105030.0,1.43670277]
[1749889306180,0.76553996,105040.0,105030.0,1.43670277]
[1749889306380,0.91242992,105040.0,105030.0,1.42182266]
[1749889306685,0.91242992,105040.0,105030.0,1.43670277]
[1749889306885,0.91242992,105040.0,105030.0,1.42182266]
[1749889307081,0.91242992,105040.0,105030.0,1.43670277]
[1749889307282,2.41242992,105040.0,105030.0,1.43670277]
[1749889307787,2.41242992,105040.0,105030.0,1.43670273]
[1749889308889,2.29410646,105040.0,105030.0,1.43670273]
[1749889310086,2.29410646,105040.0,105030.0,1.42182266]
[1749889310276,2.29410646,105040.0,105030.0,1.43670273]
[1749889310479,2.29410646,105040.0,105030.0,1.42182266]
[1749889310783,2.29410646,105040.0,105030.0,1.43670273]
[1749889311579,2.29410646,105040.0,105030.0,1.42182266]
[1749889311980,2.29410646,105040.0,105030.0,1.43670273]
[1749889313391,2.29410646,105040.0,105030.0,1.42182266]
[1749889313784,2.29410646,105040.0,105030.0,1.43670273]
[1749889313985,2.1472165,105040.0,105030.0,1.43670273]
[1749889314193,2.29410646,105040.0,105030.0,1.43670273]
[1749889314893,2.29410646,105040.0,105030.0,1.43670271]
[1749889315093,2.29410646,105040.0,105030.0,1.46850271]
[1749889315287,2.29410646,105040.0,105030.0,1.45362266]
[1749889315593,0.5531167,105040.0,105030.0,1.64505306]
[1749889315788,0.5531167,105040.0,105030.0,1.65993254]
[1749889315989,0.5531167,105040.0,105030.0,1.65993232]
[1749889316383,0.5531167,105040.0,105030.0,1.51304236]
[1749889316587,0.5531167,105040.0,105030.0,1.65993232]
[1749889317185,0.5531167,105040.0,105030.0,1.65993236]
[1749889318598,0.5531167,105040.0,105030.0,1.5130424]
[1749889319296,0.5531167,105040.0,105030.0,1.4981631]
[1749889319497,0.5531167,105040.0,105030.0,1.5130424]
[1749889319797,0.5531167,105040.0,105030.0,1.4981631]
[1749889319997,0.5531167,105040.0,105030.0,1.5130424]
[1749889320397,0.5531167,105040.0,105030.0,1.4981631]
[1749889320597,0.5531167,105040.0,105030.0,1.5130424]
[1749889320900,0.5531167,105040.0,105030.0,1.4981631]
[1749889321501,0.5531167,105040.0,105030.0,1.51303061]
[1749889321892,0.5531167,105040.0,105030.0,1.4981631]
[1749889322196,0.5531167,105040.0,105030.0,1.5130306]
[1749889322399,0.5531167,105040.0,105030.0,1.51303061]
[1749889322599,0.5531167,105040.0,105030.0,1.4981631]
[1749889322999,0.5531167,105040.0,105030.0,1.51303055]
[1749889323200,0.5531167,105040.0,105030.0,1.4981631]
[1749889324303,0.5531167,105040.0,105030.0,1.51301543]
[1749889324504,0.5531167,105040.0,105030.0,1.4981631]
[1749889324802,0.5531167,105040.0,105030.0,1.51301543]
[1749889325408,0.5531167,105040.0,105030.0,1.4981631]
[1749889325707,0.5531167,105040.0,105030.0,1.51301543]
[1749889326509,0.5531167,105040.0,105030.0,1.4981631]
[1749889326807,0.5531167,105040.0,105030.0,1.51301543]
[1749889327010,0.5531167,105040.0,105030.0,1.4981631]
[1749889327209,0.5531167,105040.0,105030.0,1.36612547]
[1749889327410,0.5531167,105040.0,105030.0,1.4981631]
[1749889327709,0.5531167,105040.0,105030.0,1.51301543]
[1749889327911,0.5531167,105040.0,105030.0,1.4981631]
[1749889328106,0.5531167,105040.0,105030.0,1.51301543]
[1749889328305,0.5531167,105040.0,105030.0,1.4981631]
[1749889328503,0.5531167,105040.0,105030.0,1.51301543]
[1749889328703,0.5531167,105040.0,105030.0,1.51300728]
[1749889329004,0.5531167,105040.0,105030.0,1.4981631]
[1749889329207,0.5531167,105040.0,105030.0,1.51300728]
[1749889329406,0.5531167,105040.0,105030.0,1.4981631]
[1749889329607,0.5531167,105040.0,105030.0,1.51300728]
[1749889330001,0.5531167,105040.0,105030.0,1.4981631]
[1749889330204,0.5531167,105040.0,105030.0,1.51300728]
[1749889331712,0.70000666,105040.0,105030.0,1.51300728]
[1749889333001,0.70000666,105040.0,105030.0,1.4981631]
[1749889333206,0.70000666,105040.0,105030.0,1.51300728]
[1749889333612,0.70000666,105040.0,105030.0,1.4981631]
[1749889333813,0.70000666,105040.0,105030.0,1.51300728]
[1749889334216,0.73080666,105040.0,105030.0,1.51300728]
[1749889334406,0.73080666,105040.0,105030.0,1.4981631]
[1749889334607,0.73080666,105040.0,105030.0,1.51300728]
[1749889334914,0.79440666,105040.0,105030.0,1.51300728]
[1749889335215,0.79440666,105040.0,105030.0,1.48120728]
[1749889335413,0.79440666,105040.0,105030.0,1.44670728]
[1749889335912,0.79440666,105040.0,105030.0,1.37058326]
[1749889336307,0.79440666,105040.0,105030.0,1.37058348]
[1749889336506,0.79440666,105040.0,105030.0,1.37058355]
[1749889336807,0.79440666,105040.0,105030.0,1.35572266]
[1749889337002,0.79440666,105040.0,105030.0,1.37058355]
[1749889337511,0.79440666,105040.0,105030.0,1.22369359]
[1749889337712,0.79440666,105040.0,105030.0,1.37058355]
[1749889339110,0.79440666,105040.0,105030.0,1.35572266]
[1749889339315,0.79440666,105040.0,105030.0,1.37058355]
[1749889339903,0.79440666,105040.0,105030.0,1.35572266]
[1749889340107,0.79440666,105040.0,105030.0,1.37058355]
[1749889340607,0.79440666,105040.0,105030.0,0.26417359]
[1749889340811,0.79440666,105040.0,105030.0,1.22369359]
[1749889341013,0.79440666,105040.0,105030.0,1.22371267]
[1749889341208,0.79440666,105040.0,105030.0,1.37060263]
[1749889341408,0.79440666,105040.0,105030.0,1.37060264]
[1749889342007,0.79440666,105040.0,105030.0,1.35572266]
[1749889342208,0.79440666,105040.0,105030.0,1.37060264]
[1749889343915,0.79440666,105040.0,105030.0,1.37060263]
[1749889344115,0.6475167,105040.0,105030.0,1.37060264]
[1749889344312,0.79440666,105040.0,105030.0,1.35572266]
[1749889344819,0.79440666,105040.0,105030.0,1.37060264]
[1749889346017,0.79440666,105040.0,105030.0,1.35572266]
[1749889346218,0.79440666,105040.0,105030.0,1.37060263]
[1749889346520,0.79440666,105040.0,105030.0,1.22371267]
[1749889346818,0.79440666,105040.0,105030.0,1.37060263]
[1749889347019,0.79440666,105040.0,105030.0,1.35572266]
[1749889347220,0.79440666,105040.0,105030.0,1.37058692]
[1749889347719,0.6475167,105040.0,105030.0,1.41512736]
[1749889347920,0.5531165,105040.0,105030.0,1.56202907]
[1749889348121,0.5531165,105040.0,105030.0,1.65812893]
[1749889348417,0.5531165,105040.0,105030.0,1.65812873]
[1749889348613,0.5531165,105040.0,105030.0,1.51123877]
[1749889348819,0.5531165,105040.0,105030.0,1.65812873]
[1749889349113,0.5511165,105040.0,105030.0,1.66412874]
[1749889349320,0.5511165,105040.0,105030.0,1.66812874]
[1749889349515,0.5511165,105040.0,105030.0,1.65325306]
[1749889349718,0.5511165,105040.0,105030.0,1.66812874]
[1749889349920,0.5511165,105040.0,105030.0,1.65325306]
[1749889350118,0.5511165,105040.0,105030.0,1.66812874]
[1749889350318,0.5511165,105040.0,105030.0,1.65325306]
[1749889350819,0.5511165,105040.0,105030.0,1.66812874]
[1749889351120,0.5511165,105040.0,105030.0,1.5063631]
[1749889351323,0.5511165,105040.0,105030.0,1.52123878]
[1749889351714,0.5511165,105040.0,105030.0,1.52122653]
[1749889352020,0.5511165,105040.0,105030.0,1.5063631]
[1749889352422,0.5511165,105040.0,105030.0,1.52121604]
[1749889352916,0.5511165,105040.0,105030.0,1.5063631]
[1749889353616,0.5511165,105040.0,105030.0,1.52121604]
[1749889354323,0.5511165,105040.0,105030.0,1.53604218]
[1749889354521,0.5511165,105040.0,105030.0,1.53604217]
[1749889355411,0.5511165,105040.0,105030.0,1.52121604]
[1749889355612,0.5511165,105040.0,105030.0,1.53604218]
[1749889355825,0.5511165,105040.0,105030.0,1.53604217]
[1749889356218,0.5511165,105040.0,105030.0,1.52121604]
[1749889356521,0.5511165,105040.0,105030.0,1.53604218]
[1749889357522,0.5511165,105040.0,105030.0,1.53604231]
[1749889357823,0.5511165,105040.0,105030.0,1.53604236]
[1749889358014,0.5819165,105040.0,105030.0,1.53604236]
[1749889358214,0.5819165,105040.0,105030.0,1.52121604]
[1749889358509,0.5819165,105040.0,105030.0,1.53604236]
[1749889358713,0.5819165,105040.0,105030.0,1.53605741]
[1749889360021,0.5819165,105040.0,105030.0,1.52121604]
[1749889360224,0.5819165,105040.0,105030.0,1.53605741]
[1749889361326,0.5511165,105040.0,105030.0,1.68294737]
[1749889361525,0.5511165,105040.0,105030.0,1.68294729]
[1749889361824,0.5511165,105040.0,105030.0,1.6829472]
[1749889362026,0.5511165,105040.0,105030.0,1.68294723]
[1749889362527,0.5511165,105040.0,105030.0,1.68294714]
[1749889362724,0.5511165,105040.0,105030.0,1.668106]
[1749889362929,0.5511165,105040.0,105030.0,1.68294719]
[1749889363125,0.5511165,105040.0,105030.0,1.668106]
[1749889363327,0.5511165,105040.0,105030.0,1.68294725]
[1749889363528,0.5511165,105040.0,105030.0,1.53605729]
[1749889363829,0.5511167,105040.0,105030.0,1.53605727]
[1749889364121,0.5511167,105040.0,105030.0,1.6829472]
[1749889365015,0.5511167,105040.0,105030.0,1.668106]
[1749889365221,0.3608,105040.0,105030.0,1.68294138]
[1749889365422,0.5511167,105040.0,105030.0,1.70294129]
[1749889365823,0.5511167,105040.0,105030.0,1.688106]
[1749889366028,0.5511167,105040.0,105030.0,1.70294126]
[1749889366519,0.5511167,105040.0,105030.0,1.688106]
[1749889366724,0.5511167,105040.0,105030.0,1.76232852]
[1749889366920,0.5511167,105040.0,105030.0,1.76232845]
[1749889367126,0.5511167,105040.0,105030.0,1.74749326]
[1749889367628,0.5511167,105040.0,105030.0,1.76232843]
[1749889368429,0.5511167,105040.0,105030.0,1.70293737]
[1749889368922,0.5511167,105040.0,105030.0,1.70294676]
[1749889369328,0.5511167,105040.0,105030.0,1.76233394]
[1749889369530,0.5511167,105040.0,105030.0,1.70294667]
[1749889369730,0.5511167,105040.0,105030.0,1.74749326]
[1749889370031,0.5511167,105040.0,105030.0,1.70294667]
[1749889370331,0.5511167,105040.0,105030.0,1.55605684]
[1749889370627,0.5511167,105040.0,105030.0,1.55605688]
[1749889371028,0.5511167,105040.0,105030.0,1.54121604]
[1749889371522,0.5511167,105040.0,105030.0,1.70294684]
[1749889371718,0.5511167,105040.0,105030.0,1.70294681]
[1749889371923,0.5511167,105040.0,105030.0,1.688106]
[1749889372131,0.5511167,105040.0,105030.0,1.70294684]
[1749889372436,0.5511167,105040.0,105030.0,1.70295246]
[1749889373033,0.5511167,105040.0,105030.0,1.688106]
[1749889373334,0.5511167,105040.0,105030.0,1.55606262]
[1749889373532,0.5511167,105040.0,105030.0,1.54121604]
[1749889373728,0.5511167,105040.0,105030.0,1.55607185]
[1749889374539,0.5827167,105040.0,105030.0,1.55607185]
[1749889375033,0.5827167,105040.0,105030.0,1.55607184]
[1749889375331,0.5827167,105040.0,105030.0,1.49711805]
[1749889375519,0.5827167,105040.0,105030.0,1.6143233]
[1749889375723,0.5827167,105040.0,105030.0,1.59946757]
[1749889375931,0.5827167,105040.0,105030.0,1.6143233]
[1749889376433,0.5827167,105040.0,105030.0,1.76211313]
[1749889376935,0.3608,105040.0,105030.0,1.76211313]
[1749889377134,0.3608,105040.0,105030.0,1.76209389]
[1749889377535,0.3608,105040.0,105030.0,1.76209385]
[1749889378135,0.3608,105040.0,105030.0,1.7620787]
[1749889378635,0.3608,105040.0,105030.0,1.71746646]
[1749889378838,0.3608,105040.0,105030.0,1.76208773]
[1749889379033,1.02277368,105050.0,105040.0,0.1903167]
[1749889379330,1.48357368,105050.0,105040.0,0.39582309]
[1749889379535,1.48357368,105050.0,105040.0,0.39582313]
[1749889380338,1.48357368,105050.0,105040.0,0.3810017]
[1749889380537,1.48357368,105050.0,105040.0,0.39582314]
[1749889380733,1.48357368,105050.0,105040.0,0.38100093]
[1749889380940,1.48557368,105050.0,105040.0,0.39582238]
[1749889381634,1.48557368,105050.0,105040.0,0.39583278]
[1749889382633,1.48557368,105050.0,105040.0,0.39583168]
[1749889382826,1.48557368,105050.0,105040.0,0.57723168]
[1749889383025,1.48557368,105050.0,105040.0,0.56240093]
[1749889383339,1.48557368,105050.0,105040.0,0.57723168]
[1749889383536,1.48557368,105050.0,105040.0,0.56240093]
[1749889383940,1.48557368,105050.0,105040.0,0.57723168]
[1749889384241,1.48557368,105050.0,105040.0,0.56240093]
[1749889384643,1.48557368,105050.0,105040.0,0.577241]
[1749889384842,1.48557368,105050.0,105040.0,0.56240093]
[1749889385341,1.33868372,105050.0,105040.0,0.56240093]
[1749889385843,1.48557368,105050.0,105040.0,0.57724098]
[1749889386338,1.48557368,105050.0,105040.0,0.56240093]
[1749889386536,1.48557368,105050.0,105040.0,0.57724099]
[1749889386835,1.48557368,105050.0,105040.0,0.57724095]
[1749889387941,1.33868372,105050.0,105040.0,0.57724095]
[1749889388143,1.48557368,105050.0,105040.0,0.57723745]
[1749889388344,1.48557368,105050.0,105040.0,0.57723744]
[1749889388945,1.48557368,105050.0,105040.0,0.56240093]
[1749889389147,1.48557368,105050.0,105040.0,0.57723744]
[1749889389443,1.48557368,105050.0,105040.0,0.57723743]
[1749889389639,1.48557368,105050.0,105040.0,0.56240093]
[1749889389943,1.48557368,105050.0,105040.0,0.57723743]
[1749889390145,1.48557368,105050.0,105040.0,0.57723745]
[1749889390345,1.48557368,105050.0,105040.0,0.57723744]
[1749889391347,1.48557368,105050.0,105040.0,0.56240093]
[1749889391541,1.48557368,105050.0,105040.0,0.57723743]
[1749889391843,1.48557368,105050.0,105040.0,0.56240093]
[1749889392144,1.48557368,105050.0,105040.0,0.57723743]
[1749889392546,1.33868372,105050.0,105040.0,0.57723743]
[1749889392847,1.33868372,105050.0,105040.0,0.56240093]
[1749889393040,1.33868372,105050.0,105040.0,0.57723743]
[1749889393237,1.33868372,105050.0,105040.0,0.57723744]
[1749889393443,1.29110512,105050.0,105040.0,0.57723739]
[1749889393644,1.29110512,105050.0,105040.0,0.56240093]
[1749889394139,1.29110512,105050.0,105040.0,0.57723739]
[1749889394343,1.29110512,105050.0,105040.0,0.5772374]
[1749889394646,1.29110512,105050.0,105040.0,0.56240093]
[1749889394842,0.54713732,105050.0,105040.0,1.01233721]
[1749889395039,0.18633732,105050.0,105040.0,0.76150414]
[1749889395235,0.18633732,105050.0,105040.0,1.11634223]
[1749889395442,0.18633732,105050.0,105040.0,1.10150414]
[1749889395642,0.18633732,105050.0,105040.0,0.77634208]
[1749889396245,0.18433732,105050.0,105040.0,0.77634208]
[1749889396442,0.18433732,105050.0,105040.0,0.78034208]
[1749889396646,0.18433732,105050.0,105040.0,0.78034195]
[1749889396841,0.18433732,105050.0,105040.0,0.76550414]
[1749889397042,0.18433732,105050.0,105040.0,0.78034195]
[1749889397242,0.18433732,105050.0,105040.0,0.78634195]
[1749889397650,0.37463582,105050.0,105040.0,0.78634195]
[1749889397844,0.18433732,105050.0,105040.0,0.77150414]
[1749889398045,0.18433732,105050.0,105040.0,0.78631256]
[1749889398242,0.18433732,105050.0,105040.0,0.77150414]
[1749889398437,0.54513732,105050.0,105040.0,0.726919]
[1749889398839,0.54513732,105050.0,105040.0,0.72691916]
[1749889399039,0.54513732,105050.0,105040.0,0.71211688]
[1749889399247,0.37463592,105050.0,105040.0,0.72691919]
[1749889399446,0.73543592,105050.0,105040.0,0.71211688]
[1749889399757,0.73543592,105050.0,105040.0,0.72691921]
[1749889400456,0.73543592,105050.0,105040.0,0.72691922]
[1749889400952,0.73543592,105050.0,105040.0,0.72691923]
[1749889401253,0.73543592,105050.0,105040.0,0.71211688]
[1749889404155,0.54513732,105050.0,105040.0,0.71211688]
[1749889410558,0.54513732,105050.0,105040.0,0.726994]
[1749889410959,0.54513732,105050.0,105040.0,0.72699383]
[1749889411454,0.54513732,105050.0,105040.0,0.77150414]
[1749889411660,0.54513732,105050.0,105040.0,0.78638093]
[1749889411856,0.54513732,105050.0,105040.0,0.78638073]
[1749889412453,0.54513732,105050.0,105040.0,0.77150414]
[1749889412756,0.54513732,105050.0,105040.0,0.78638073]
[1749889412951,0.64173732,105050.0,105040.0,0.78638073]
[1749889413661,0.64173732,105050.0,105040.0,0.77150414]
[1749889414162,0.47053486,105050.0,105040.0,1.06518084]
[1749889414461,0.10014255,105050.0,105040.0,1.0962808]
[1749889414863,0.10014255,105050.0,105040.0,1.09628082]
[1749889415858,0.10014255,105050.0,105040.0,1.09628049]
[1749889417555,0.13284255,105050.0,105040.0,1.09628049]
[1749889417765,0.49364255,105050.0,105040.0,1.09628049]
[1749889417959,0.49364255,105050.0,105040.0,1.09628067]
[1749889418359,0.49364255,105050.0,105040.0,1.09628069]
[1749889418561,0.49364255,105050.0,105040.0,1.08140414]
[1749889418865,0.53511436,105050.0,105040.0,1.08140414]
[1749889419064,0.56521436,105050.0,105040.0,1.08140414]
[1749889419266,0.56521436,105050.0,105040.0,1.09628069]
[1749889419766,0.56521436,105050.0,105040.0,1.08140414]
[1749889420362,0.56521436,105050.0,105040.0,1.09628069]
[1749889421061,0.56521436,105050.0,105040.0,1.08140414]
[1749889421266,0.56521436,105050.0,105040.0,1.09628069]
[1749889421458,0.56521436,105050.0,105040.0,1.05166474]
[1749889422061,0.56521436,105050.0,105040.0,1.03678819]
[1749889422264,0.56521436,105050.0,105040.0,1.05166474]
[1749889422669,0.56521436,105050.0,105040.0,1.03678819]
[1749889422969,0.56521436,105050.0,105040.0,1.05166474]
[1749889423367,0.56521436,105050.0,105040.0,0.83166474]
[1749889423571,0.56521436,105050.0,105040.0,1.11166474]
[1749889423865,0.56521436,105050.0,105040.0,1.04056474]
[1749889424066,0.56521436,105050.0,105040.0,1.02568819]
[1749889424371,0.56521436,105050.0,105040.0,1.11476908]
[1749889424572,0.56521436,105050.0,105040.0,1.12964563]
[1749889425465,0.56521436,105050.0,105040.0,1.11476908]
[1749889425665,0.56521436,105050.0,105040.0,1.12964563]
[1749889427269,0.56521436,105050.0,105040.0,1.11476908]
[1749889427573,0.56521436,105050.0,105040.0,1.12964563]
[1749889428273,0.56521436,105050.0,105040.0,1.11476908]
[1749889428477,0.56521436,105050.0,105040.0,1.12964563]
[1749889428772,0.56521436,105050.0,105040.0,1.11476908]
[1749889428972,0.56521436,105050.0,105040.0,1.12964563]
[1749889429776,0.56521436,105050.0,105040.0,1.11476908]
[1749889430276,0.56521436,105050.0,105040.0,1.12964563]
[1749889430468,0.56521436,105050.0,105040.0,1.04056474]
[1749889430669,0.56521436,105050.0,105040.0,1.11476908]
[1749889431175,0.56521436,105050.0,105040.0,1.1296456]